bitfinex-derivatives/quotes_ETHF0:USTF0_20241018
["timestamp","ask_amount","ask_price","bid_price","bid_amount"]
[1729276973584,2.45468959,2671.2,2671.0,3.2078]
[1729276973786,2.45468959,2671.2,2671.1,1.51725]
[1729276973984,2.45468959,2671.3,2671.2,0.37434]
[1729276974184,6.1278,2671.4,2671.3,0.37433]
[1729276974185,2.45468959,2671.4,2671.3,0.37433]
[1729276974488,3.49598959,2671.5,2671.4,0.37431]
[1729276975106,6.41598959,2671.5,2671.1,1.1429]
[1729276975410,2.92,2671.2,2671.1,1.51725]
[1729276976201,2.45397188,2671.4,2671.3,0.37433]
[1729276976400,6.41527188,2671.5,2671.3,0.37433]
[1729276976613,0.37431,2671.4,2671.1,1.1429]
[1729276976808,2.82828188,2671.4,2671.2,0.37434]
[1729276977010,2.45397188,2671.4,2671.2,0.37434]
[1729276977313,2.82829188,2671.4,2671.2,0.37434]
[1729276977707,2.82829188,2671.4,2671.1,1.1429]
[1729276977905,2.45397188,2671.4,2671.1,1.1429]
[1729276978106,2.45397188,2671.4,2671.2,0.37434]
[1729276978305,2.45397188,2671.4,2671.1,1.1429]
[1729276978306,2.82829188,2671.4,2671.1,1.1429]
[1729276978610,2.45397188,2671.4,2671.3,0.37433]
[1729276979107,6.78958188,2671.5,2671.3,0.37433]
[1729276979307,6.78958188,2671.5,2671.1,1.1429]
[1729276979308,3.9613,2671.5,2671.4,0.37431]
[1729276979610,4.36111881,2671.8,2671.4,3.58211]
[1729276979611,2.94514083,2671.8,2671.4,3.58211]
[1729276979815,2.45254505,2671.6,2671.4,3.58211]
[1729276980012,2.45254505,2671.6,2671.5,0.3743]
[1729276980909,2.45254505,2671.6,2671.4,3.2078]
[1729276981114,2.45254505,2671.6,2671.1,2.07877]
[1729276981115,2.92,2671.5,2671.3,0.37432]
[1729276981305,0.37433,2671.3,2671.1,4.72505]
[1729276981610,2.45267889,2671.3,2671.2,0.37434]
[1729276981811,2.45267889,2671.5,2671.1,4.3507]
[1729276982111,2.45240524,2671.4,2671.1,5.28658]
[1729276982311,2.45240524,2671.5,2671.4,0.37431]
[1729276982919,2.45240524,2671.6,2671.5,0.3743]
[1729276983207,2.45240524,2671.7,2671.6,0.37428]
[1729276984205,2.82667524,2671.7,2671.3,1.98362]
[1729276984518,2.82668524,2671.7,2671.5,0.37429]
[1729276984712,2.45240524,2671.7,2671.6,0.37428]
[1729276986313,2.94514083,2671.7,2671.4,0.93578]
[1729276986513,2.94514083,2671.7,2671.6,0.37428]
[1729276988921,4.38267,2671.8,2671.7,0.37427]
[1729276988922,7.32780083,2671.8,2671.7,0.37427]
[1729276990019,4.38266,2671.8,2671.7,0.37427]
[1729276990319,6.94705746,2671.8,2671.7,0.37427]
[1729276991312,7.32132746,2671.8,2671.6,0.37428]
[1729276991720,2.93865746,2671.7,2671.6,0.37428]
[1729276991918,7.32132746,2671.8,2671.6,0.37428]
[1729276992112,6.68185746,2671.7,2671.2,3.2078]
[1729276992316,2.92,2671.6,2671.5,0.37429]
[1729276992519,2.92,2671.6,2671.2,3.2078]
[1729276992823,2.93832598,2671.5,2671.4,0.37431]
[1729276993416,3.29428,2671.6,2671.4,0.37431]
[1729276993417,3.29429,2671.6,2671.4,0.37431]
[1729276993820,3.29428,2671.6,2671.4,0.3743]
[1729276994014,2.92,2671.6,2671.2,3.2078]
[1729276994211,2.92,2671.6,2671.4,0.3743]
[1729276994212,3.29429,2671.6,2671.4,0.3743]
[1729276995221,2.92,2671.6,2671.5,0.3743]
[1729276995425,2.82284454,2671.7,2671.6,0.37428]
[1729276995426,2.44857454,2671.7,2671.6,0.37428]
[1729276995617,6.83123454,2671.8,2671.6,0.37428]
[1729276995927,1.0884,2671.8,2671.7,0.37427]
[1729276996419,2.65584166,2672.1,2671.5,3.2078]
[1729276996625,3.2078,2672.3,2672.1,0.37421]
[1729276996824,3.2078,2672.3,2672.2,0.3742]
[1729276997019,9.65497454,2672.6,2672.4,0.37416]
[1729276997224,4.2864,2672.6,2672.5,0.37416]
[1729276997723,4.2864,2672.6,2672.1,0.93554]
[1729276997926,4.66054,2672.6,2672.4,0.37417]
[1729276998132,4.2864,2672.6,2672.5,0.37416]
[1729276999522,4.2864,2672.6,2672.1,4.14334]
[1729276999732,4.2864,2672.6,2672.5,0.37416]
[1729277000033,1.0786,2672.6,2672.5,0.37416]
[1729277000220,47.30191,2672.9,2672.4,0.93543]
[1729277000221,6.1278,2672.9,2672.4,0.93543]
[1729277000532,7.2627,2672.9,2672.8,0.37412]
[1729277000728,7.2627,2672.9,2672.4,0.93543]
[1729277001024,4.3427,2672.9,2672.8,0.37412]
[1729277001523,4.3427,2672.9,2672.4,0.93543]
[1729277001731,4.3427,2672.9,2672.8,0.37412]
[1729277002424,4.3427,2672.9,2672.5,1.1045]
[1729277002425,4.7168,2672.9,2672.7,0.37412]
[1729277003225,2.44148283,2672.8,2672.7,0.37412]
[1729277003530,2.44148283,2672.8,2672.5,1.1045]
[1729277003721,2.44148283,2672.8,2672.7,0.37413]
[1729277005830,2.44148283,2672.8,2672.7,0.37412]
[1729277006330,6.49638283,2672.9,2672.8,0.37412]
[1729277006632,6.87049283,2672.9,2672.7,0.37412]
[1729277006930,6.49638283,2672.9,2672.7,0.37412]
[1729277007231,6.49638283,2672.9,2672.5,1.1045]
[1729277007430,6.87049283,2672.9,2672.7,0.37412]
[1729277007633,6.49638283,2672.9,2672.7,0.37412]
[1729277007821,1.1349,2672.9,2672.8,0.37412]
[1729277008630,1.1349,2672.9,2672.5,4.24559]
[1729277008833,1.1349,2672.9,2672.8,0.37412]
[1729277010031,40.8,2673.2,2673.1,0.37407]
[1729277010236,3.58183,2673.5,2673.0,0.93521]
[1729277010427,3.58183,2673.5,2672.9,0.93525]
[1729277010627,44.38183,2673.5,2673.3,0.37404]
[1729277010834,3.2078,2673.5,2673.4,0.37403]
[1729277011236,1.4955,2673.7,2673.4,0.37403]
[1729277011730,12.74035283,2674.1,2674.0,0.37395]
[1729277011731,3.2078,2674.1,2674.0,0.37395]
[1729277012521,3.2078,2674.1,2673.7,1.1046]
[1729277012730,3.2078,2674.1,2673.9,0.37395]
[1729277013543,3.2078,2674.1,2673.8,0.37397]
[1729277013836,3.29393,2674.2,2673.8,0.37397]
[1729277014337,1.1215,2674.3,2673.5,4.2478]
[1729277014338,2.92,2674.0,2673.5,4.2478]
[1729277014536,0.37398,2673.8,2673.5,4.2478]
[1729277014726,3.29396,2674.0,2673.6,0.374]
[1729277014929,0.37396,2674.0,2673.6,0.374]
[1729277015128,41.17396,2674.0,2673.6,0.374]
[1729277015441,0.37397,2673.9,2673.5,4.62181]
[1729277015628,40.8,2674.0,2673.5,4.2478]
[1729277015629,0.37398,2673.8,2673.5,4.2478]
[1729277015830,0.37396,2673.9,2673.5,4.2478]
[1729277016129,40.8,2674.0,2673.5,4.2478]
[1729277016338,0.37398,2673.8,2673.5,4.2478]
[1729277016533,46.16148283,2674.0,2673.5,4.2478]
[1729277016733,46.16148283,2674.0,2673.1,4.3161]
[1729277016734,2.92,2673.8,2673.1,4.3161]
[1729277016943,0.37406,2673.2,2673.1,3.2078]
[1729277017327,2.1997,2673.4,2673.1,3.2078]
[1729277017636,0.37403,2673.5,2673.1,6.1278]
[1729277017827,0.37403,2673.5,2673.2,0.37406]
[1729277018027,0.37403,2673.5,2673.1,6.1278]
[1729277018028,0.37404,2673.4,2673.1,6.1278]
[1729277018227,2.92,2673.5,2673.1,3.2078]
[1729277018430,0.37406,2673.2,2673.1,3.2078]
[1729277018733,2.92,2673.5,2673.1,3.2078]
[1729277018931,0.37406,2673.2,2673.1,3.2078]
[1729277019732,0.3741,2672.9,2672.8,3.2078]
[1729277020345,0.3741,2672.9,2672.5,3.2078]
[1729277020346,0.37414,2672.6,2672.5,3.2078]
[1729277020631,0.37414,2672.6,2672.2,2.1518]
[1729277020632,0.37419,2672.3,2672.2,3.2078]
[1729277020837,2.44148283,2672.7,2672.2,9.8694]
[1729277021034,1.1459,2672.8,2672.5,3.2078]
[1729277021234,1.1459,2672.8,2672.5,3.58196]
[1729277021235,0.37414,2672.7,2672.5,3.58196]
[1729277021437,0.37414,2672.7,2672.5,3.2078]
[1729277021733,1.1459,2672.8,2672.5,3.2078]
[1729277022037,0.37413,2672.7,2672.5,3.2078]
[1729277022535,1.1459,2672.8,2672.5,3.2078]
[1729277022832,1.52003,2672.8,2672.5,3.58196]
[1729277023231,1.52003,2672.8,2672.6,1.0504]
[1729277023424,1.1459,2672.8,2672.6,1.0504]
[1729277023631,0.37413,2672.7,2672.6,1.0504]
[1729277024038,0.37414,2672.6,2672.5,3.2078]
[1729277024338,1.1459,2672.8,2672.1,3.58201]
[1729277024339,6.1278,2672.7,2672.1,3.58201]
[1729277024531,0.37419,2672.3,2672.1,3.58201]
[1729277024928,0.3742,2672.2,2672.1,3.2078]
[1729277025136,0.93537,2672.6,2672.0,1.0504]
[1729277025432,0.3742,2672.2,2672.1,3.2078]
[1729277026331,0.37421,2672.1,2672.0,1.0504]
[1729277026641,3.8554,2672.5,2672.0,1.0504]
[1729277026843,0.3742,2672.2,2672.1,0.37421]
[1729277027044,0.3742,2672.2,2672.0,1.0504]
[1729277027243,0.3742,2672.2,2672.0,1.42462]
[1729277027447,3.2078,2672.7,2672.0,3.9704]
[1729277027740,3.2078,2672.7,2672.3,0.37418]
[1729277027741,0.37413,2672.7,2672.3,0.37418]
[1729277028037,0.93531,2672.8,2672.3,0.37418]
[1729277028038,0.37418,2672.4,2672.3,0.37418]
[1729277028542,1.093,2672.8,2672.1,3.2078]
[1729277028741,0.37413,2672.7,2672.4,0.37417]
[1729277028939,3.2078,2672.9,2672.2,2.92]
[1729277029237,0.93523,2673.0,2672.5,0.37415]
[1729277029238,0.37414,2672.7,2672.5,0.37415]
[1729277029738,0.37414,2672.7,2672.2,3.85551]
[1729277029739,1.1326,2673.1,2672.6,6.1278]
[1729277029934,0.37411,2672.9,2672.7,0.37413]
[1729277030136,0.3741,2673.0,2672.8,0.37411]
[1729277030439,0.37409,2673.0,2672.8,0.37411]
[1729277030742,1.1326,2673.1,2672.7,1.1256]
[1729277030934,1.1326,2673.1,2672.2,6.1278]
[1729277030935,3.2078,2672.9,2672.2,6.1278]
[1729277031136,0.37419,2672.3,2672.2,3.2078]
[1729277031334,0.37421,2672.2,2672.0,0.37422]
[1729277031741,0.37421,2672.2,2672.1,0.37421]
[1729277032134,2.171,2672.6,2672.0,2.92]
[1729277032338,1.0384,2672.6,2672.4,0.37417]
[1729277032546,6.1278,2673.0,2672.6,0.37414]
[1729277032547,0.37413,2672.7,2672.6,0.37414]
[1729277033234,7.1662,2673.0,2672.5,1.1368]
[1729277033235,0.37412,2672.8,2672.7,0.37413]
[1729277033430,0.37412,2672.8,2672.5,1.1368]
[1729277033634,4.2462,2673.0,2672.6,0.37414]
[1729277033838,0.37413,2672.8,2672.6,0.37414]
[1729277034634,4.2462,2673.0,2672.5,4.0568]
[1729277034842,0.37411,2672.9,2672.7,0.37412]
[1729277035744,4.2462,2673.0,2672.5,4.0568]
[1729277036048,2.92,2672.8,2672.3,0.37417]
[1729277036241,0.37413,2672.7,2672.5,0.37415]
[1729277036448,3.58008283,2672.9,2672.6,0.37414]
[1729277036449,0.37412,2672.8,2672.6,0.37414]
[1729277036944,4.72051,2672.9,2672.6,0.37414]
[1729277037144,4.3464,2672.9,2672.6,0.37414]
[1729277037453,0.37412,2672.8,2672.6,0.37414]
[1729277037647,0.37412,2672.8,2672.5,0.37415]
[1729277037849,3.2078,2672.7,2672.3,1.0935]
[1729277038151,2.92,2672.8,2672.1,0.37421]
[1729277038152,0.37419,2672.3,2672.1,0.37421]
[1729277038540,2.2026,2672.4,2672.1,0.37421]
[1729277038742,2.2026,2672.4,2671.9,5.3934]
[1729277038937,2.57678,2672.4,2672.1,0.3742]
[1729277039146,2.57678,2672.4,2671.9,5.3934]
[1729277039352,2.57678,2672.4,2672.1,0.3742]
[1729277039647,0.37419,2672.3,2672.1,0.3742]
[1729277040037,2.2026,2672.4,2671.9,5.3934]
[1729277040240,0.37421,2672.2,2672.0,0.37422]
[1729277040449,0.37421,2672.2,2671.9,3.2078]
[1729277040843,2.2026,2672.4,2672.1,0.37421]
[1729277041045,0.3742,2672.3,2672.1,0.37421]
[1729277041442,2.2026,2672.4,2671.9,3.2078]
[1729277041755,1.1406,2672.4,2671.9,4.14339]
[1729277041944,1.0925,2672.7,2672.1,0.93554]
[1729277042249,0.37413,2672.8,2672.3,4.14327]
[1729277042450,0.37413,2672.8,2672.7,0.37413]
[1729277042651,1.47931,2672.9,2672.8,0.37412]
[1729277042849,1.4793,2672.9,2672.8,0.37412]
[1729277043148,1.1052,2672.9,2672.8,0.37412]
[1729277043453,1.1052,2672.9,2672.4,2.01383]
[1729277043454,1.47931,2672.9,2672.7,0.37412]
[1729277044147,1.1052,2672.9,2672.4,2.01383]
[1729277044354,1.4793,2672.9,2672.7,0.37412]
[1729277044859,1.1052,2672.9,2672.5,0.37416]
[1729277045150,1.1052,2672.9,2672.8,0.37412]
[1729277045342,3.2078,2673.1,2672.6,3.2078]
[1729277045544,0.37407,2673.2,2673.0,0.37408]
[1729277045746,0.37407,2673.2,2672.7,0.93533]
[1729277046153,0.37407,2673.2,2673.0,0.37408]
[1729277046347,0.37407,2673.1,2672.6,5.4152]
[1729277046546,2.92,2673.2,2672.8,0.37411]
[1729277046547,0.37409,2673.0,2672.8,0.37411]
[1729277046861,2.92,2673.0,2672.8,0.37411]
[1729277047052,3.2941,2673.0,2672.8,0.37411]
[1729277047354,3.2941,2673.0,2672.6,3.2078]
[1729277047355,0.3741,2673.0,2672.6,3.2078]
[1729277047543,1.038,2673.1,2672.9,0.37409]
[1729277047544,1.41208,2673.1,2672.9,0.37409]
[1729277047742,0.37409,2673.0,2672.8,0.3741]
[1729277049051,1.038,2673.1,2672.8,0.3741]
[1729277049253,0.3741,2673.0,2672.8,0.3741]
[1729277049447,1.038,2673.1,2672.8,0.3741]
[1729277049647,2.92,2673.4,2672.6,6.1278]
[1729277049951,0.37406,2673.3,2673.1,0.37407]
[1729277050456,0.37406,2673.3,2673.0,0.37408]
[1729277050656,0.37405,2673.3,2672.7,0.93532]
[1729277050861,0.37405,2673.3,2673.1,0.37407]
[1729277051050,6.1278,2673.4,2672.8,0.93529]
[1729277051247,6.1278,2673.4,2673.1,0.37407]
[1729277051248,0.37405,2673.3,2673.1,0.37407]
[1729277053956,0.37406,2673.3,2672.9,1.0672]
[1729277054157,2.44390921,2673.1,2673.0,0.37409]
[1729277059065,0.37406,2673.2,2673.0,0.37409]
[1729277059469,3.31237598,2673.3,2673.1,0.37407]
[1729277059658,0.37406,2673.2,2672.9,1.0672]
[1729277059861,2.44563227,2673.0,2672.9,1.4413]
[1729277060466,3.31239598,2673.2,2673.0,0.37408]
[1729277060662,2.93832598,2673.2,2672.9,1.0672]
[1729277060963,2.93832598,2673.2,2673.1,0.37407]
[1729277061168,2.93832598,2673.4,2673.3,0.37405]
[1729277061358,2.93832598,2673.5,2673.4,0.37403]
[1729277061556,3.42544881,2673.7,2673.6,0.374]
[1729277061557,2.93832598,2673.7,2673.6,0.374]
[1729277061762,5.0242,2673.8,2673.4,0.845]
[1729277062052,5.0242,2673.8,2673.5,0.37401]
[1729277062053,0.37399,2673.7,2673.5,0.37401]
[1729277062257,10.76495284,2673.8,2673.6,0.374]
[1729277062459,10.39096284,2673.8,2673.5,0.37402]
[1729277062658,1.9576009,2673.7,2673.4,0.845]
[1729277062866,1.9576009,2673.7,2673.6,0.374]
[1729277063660,2.3315909,2673.7,2673.4,0.845]
[1729277063859,1.9576009,2673.7,2673.4,0.845]
[1729277064058,0.37403,2673.4,2673.3,3.2078]
[1729277064261,1.9576009,2673.4,2673.0,3.2078]
[1729277064465,1.9576009,2673.4,2673.3,0.37405]
[1729277064770,1.9576009,2673.5,2673.1,0.93519]
[1729277065066,1.9576009,2673.5,2673.4,0.37403]
[1729277065266,1.9576009,2673.5,2673.2,1.80214]
[1729277065267,1.9576009,2673.6,2673.5,0.37402]
[1729277066167,2.3316109,2673.6,2673.4,0.37402]
[1729277066565,1.9576009,2673.6,2673.2,0.867]
[1729277067266,2.3316109,2673.6,2673.4,0.37403]
[1729277067875,1.9576009,2673.6,2673.4,0.37403]
[1729277068066,0.37402,2673.5,2673.4,0.37403]
[1729277068661,1.9576009,2673.5,2673.2,0.867]
[1729277068865,1.9576009,2673.4,2673.2,0.867]
[1729277069066,0.37405,2673.3,2673.2,0.37405]
[1729277069278,0.37405,2673.3,2673.1,3.2078]
[1729277069279,1.9576009,2673.4,2673.1,3.2078]
[1729277069567,2.3316109,2673.6,2673.4,0.37402]
[1729277069762,1.9576009,2673.5,2673.4,0.37402]
[1729277069967,2.3316209,2673.5,2673.4,0.37402]
[1729277070166,1.9576009,2673.5,2673.4,0.37402]
[1729277070366,1.9576009,2673.7,2673.4,6.6608]
[1729277070570,3.2078,2674.0,2673.7,0.37399]
[1729277070571,1.9576009,2673.8,2673.7,0.37399]
[1729277070766,1.9576009,2673.9,2673.5,3.55454]
[1729277070973,1.9576009,2673.9,2673.8,0.37398]
[1729277072276,3.29396,2673.9,2673.7,0.37398]
[1729277072469,5.2515709,2673.9,2673.7,0.37398]
[1729277072667,5.2515709,2673.9,2673.5,5.8273]
[1729277072974,1.9576009,2673.8,2673.7,0.37398]
[1729277073174,5.2515709,2673.9,2673.7,0.37398]
[1729277074376,1.9576009,2673.9,2673.8,0.37398]
[1729277074578,2.82070284,2674.1,2673.9,0.37396]
[1729277074579,0.37395,2674.0,2673.9,0.37396]
[1729277074764,1.9576009,2674.0,2673.9,0.37396]
[1729277075076,2.3315509,2674.0,2673.8,0.37396]
[1729277075281,0.37396,2673.9,2673.5,5.8273]
[1729277075470,0.37396,2673.9,2673.7,0.37398]
[1729277076573,0.37396,2673.9,2673.5,5.8273]
[1729277076574,0.374,2673.6,2673.5,3.2078]
[1729277076778,2.82076284,2673.6,2673.5,3.2078]
[1729277076977,0.374,2673.6,2673.5,3.2078]
[1729277077582,0.374,2673.6,2673.5,3.58181]
[1729277077881,1.308,2673.6,2673.5,3.58182]
[1729277078276,1.308,2673.6,2673.2,0.842]
[1729277078479,2.4441719,2673.3,2673.2,0.842]
[1729277078773,2.4441719,2673.3,2673.2,1.21606]
[1729277078977,2.4441719,2673.3,2673.2,4.95686]
[1729277079581,2.4441719,2673.4,2673.3,0.37405]
[1729277080582,0.37402,2673.5,2673.4,0.37403]
[1729277082068,0.37404,2673.4,2673.3,0.37404]
[1729277082673,3.87232598,2673.6,2673.2,0.842]
[1729277082876,0.37403,2673.5,2673.4,0.37402]
[1729277083579,3.87232598,2673.6,2673.2,0.842]
[1729277083782,1.30802,2673.6,2673.2,4.13606]
[1729277084081,0.934,2673.6,2673.5,0.37402]
[1729277089581,0.934,2673.6,2673.5,0.26042786]
[1729277090681,1.308,2673.6,2673.5,0.26042786]
[1729277090880,0.934,2673.6,2673.3,3.2078]
[1729277091086,0.37403,2673.5,2673.4,0.37403]
[1729277092084,1.6319,2673.6,2673.5,0.37402]
[1729277092085,2.00591,2673.6,2673.5,0.37402]
[1729277092589,1.30801,2673.6,2673.5,0.37402]
[1729277092782,0.934,2673.6,2673.5,0.37402]
[1729277093384,1.308,2673.6,2673.5,0.37402]
[1729277098696,1.30801,2673.6,2673.5,0.37402]
[1729277099190,3.26737579,2673.6,2673.5,0.37402]
[1729277100285,1.30801,2673.6,2673.5,0.37402]
[1729277100595,1.30801,2673.6,2673.4,3.2078]
[1729277100596,0.37402,2673.5,2673.4,3.2078]
[1729277100784,3.05955007,2673.5,2673.4,3.2078]
[1729277101186,3.05955007,2673.5,2673.3,0.37403]
[1729277101187,1.09972,2673.5,2673.3,0.37403]
[1729277101394,2.33422962,2673.4,2673.3,0.37403]
[1729277102091,1.96019962,2673.4,2673.0,3.2078]
[1729277102293,4.88019962,2673.2,2673.0,3.2078]
[1729277102591,1.960495,2673.2,2673.1,0.37407]
[1729277102992,1.960495,2673.2,2673.0,3.2078]
[1729277102993,1.960495,2673.3,2673.2,0.37406]
[1729277103200,1.960495,2673.4,2673.1,3.6156]
[1729277103400,1.960495,2673.5,2673.4,0.37403]
[1729277103695,3.268495,2673.6,2673.5,1.09402]
[1729277103992,4.24438014,2673.6,2673.5,1.09402]
[1729277104196,2.284,2673.6,2673.5,1.09402]
[1729277104396,2.658,2673.6,2673.5,1.09402]
[1729277104598,2.284,2673.6,2673.5,1.09402]
[1729277105591,2.284,2673.6,2673.5,2.44402]
[1729277105592,2.89502065,2673.6,2673.5,2.44402]
[1729277105796,3.79920724,2673.7,2673.5,5.81]
[1729277105797,1.96102065,2673.7,2673.5,5.81]
[1729277106096,1.96102065,2673.8,2673.7,0.37399]
[1729277106293,3.31102065,2673.8,2673.7,0.37399]
[1729277106894,4.28832598,2673.8,2673.7,0.37399]
[1729277107400,1.35,2673.8,2673.7,0.37399]
[1729277107589,4.28832598,2673.8,2673.7,0.37399]
[1729277108194,4.28832598,2673.8,2673.7,1.72399]
[1729277108387,0.72192598,2673.8,2673.7,1.72399]
[1729277108598,3.42544881,2674.6,2673.8,3.74]
[1729277108801,4.41495279,2675.0,2674.9,0.37382]
[1729277108802,0.01080432,2675.0,2674.9,0.37382]
[1729277108998,0.01080432,2675.0,2674.9,4.93162]
[1729277109201,2.34393833,2675.9,2675.0,5.60666]
[1729277109409,2.16788309,2676.6,2675.8,1.35]
[1729277109410,1.35,2676.4,2675.8,1.35]
[1729277109697,2.16788309,2676.6,2676.3,1.35]
[1729277109900,2.16788309,2676.6,2676.5,1.35]
[1729277110090,2.16788309,2676.6,2676.5,5.086]
[1729277110293,2.16788309,2676.6,2676.5,8.2938]
[1729277110989,2.16788309,2676.6,2676.5,8.6674]
[1729277111389,2.16788309,2676.6,2676.5,7.3174]
[1729277111591,2.16788309,2676.6,2676.5,8.6674]
[1729277111791,2.16788309,2676.6,2676.5,10.2374]
[1729277112003,2.16788309,2676.6,2676.5,6.9438]
[1729277113492,2.16788309,2676.6,2676.5,3.2078]
[1729277115901,2.16788309,2676.6,2676.5,6.9438]
[1729277116104,2.16788309,2676.6,2676.5,3.2078]
[1729277116399,2.16788309,2676.6,2676.5,6.9438]
[1729277116595,2.16788309,2676.6,2676.5,3.2078]
[1729277117302,2.54146309,2676.6,2676.5,3.2078]
[1729277117496,0.37363,2676.3,2675.6,3.2078]
[1729277117809,0.37363,2676.3,2675.3,3.2078]
[1729277117810,0.37375,2675.4,2675.3,3.2078]
[1729277117991,44.09375,2675.4,2675.3,3.2078]
[1729277118189,44.09375,2675.4,2674.5,2.92]
[1729277118190,43.72,2675.4,2674.9,3.2078]
[1729277118599,40.8,2675.4,2674.9,3.2078]
[1729277118993,6.1278,2675.6,2674.9,3.2078]
[1729277119596,40.8,2675.5,2674.9,3.2078]
[1729277120096,3.59,2676.4,2675.2,6.7978]
[1729277120299,3.59,2676.4,2675.9,3.2078]
[1729277120300,0.37361,2676.4,2675.9,3.2078]
[1729277120505,40.8,2676.4,2675.9,3.2078]
[1729277120915,2.16788309,2676.6,2675.9,3.2078]
[1729277121107,2.16788309,2676.6,2676.3,3.2078]
[1729277121402,2.16788309,2676.6,2676.4,3.736]
[1729277121903,2.16788309,2676.6,2676.5,3.736]
[1729277122105,2.16788309,2676.6,2676.4,3.736]
[1729277122405,2.16788309,2676.6,2676.5,3.736]
[1729277122603,2.16788309,2676.6,2676.4,3.736]
[1729277122805,2.16788309,2676.6,2676.5,3.736]
[1729277122999,2.16788309,2676.6,2676.4,3.736]
[1729277123498,2.16788309,2676.6,2676.5,3.736]
[1729277123807,2.16788309,2676.6,2676.3,3.2078]
[1729277123808,2.16788309,2676.6,2676.4,3.736]
[1729277124194,2.16788309,2676.6,2676.3,3.2078]
[1729277124195,2.16788309,2676.6,2676.5,3.736]
[1729277124504,2.16788309,2676.6,2676.4,3.736]
[1729277124908,2.16788309,2676.6,2676.5,3.736]
[1729277125111,2.16788309,2676.6,2676.4,3.736]
[1729277125496,2.16788309,2676.6,2676.5,3.736]
[1729277126604,2.54146309,2676.6,2676.5,3.736]
[1729277128203,2.54146309,2676.6,2676.3,3.2078]
[1729277128204,0.37361,2676.4,2676.3,3.2078]
[1729277129005,0.37365,2676.1,2676.0,3.2078]
[1729277129207,0.37365,2676.1,2675.8,1.151]
[1729277129208,0.37367,2676.0,2675.9,3.7368]
[1729277129405,0.3737,2675.8,2675.7,3.2078]
[1729277129611,0.93404,2676.4,2675.7,6.9454]
[1729277129812,0.37368,2675.9,2675.7,3.2078]
[1729277130006,0.93404,2676.4,2675.7,3.2078]
[1729277130208,0.3737,2675.8,2675.7,3.2078]
[1729277130602,0.3737,2675.8,2675.7,6.9454]
[1729277131011,6.7978,2676.4,2675.3,1.151]
[1729277131012,0.37375,2675.4,2675.3,3.2078]
[1729277131405,0.37375,2675.4,2675.3,6.9454]
[1729277132104,0.37375,2675.4,2675.3,3.2078]
[1729277132309,0.93428,2675.8,2675.0,3.2078]
[1729277132310,0.37379,2675.1,2675.0,3.2078]
[1729277132511,0.37379,2675.2,2675.0,3.2078]
[1729277132702,0.37374,2675.5,2675.0,3.2078]
[1729277132904,0.93432,2675.6,2675.0,3.2078]
[1729277132905,0.37379,2675.2,2675.0,3.2078]
[1729277133511,0.37372,2675.7,2675.1,7.3284]
[1729277133713,0.37372,2675.7,2675.4,3.2078]
[1729277134109,4.52412,2676.2,2675.8,0.37369]
[1729277134110,0.37365,2676.2,2675.8,0.37369]
[1729277134414,0.37366,2676.1,2675.7,3.5815]
[1729277134606,0.37368,2676.0,2675.7,3.2078]
[1729277134806,0.37369,2675.9,2675.7,3.2078]
[1729277135011,0.37368,2676.0,2675.7,3.2078]
[1729277135211,0.37368,2675.9,2675.7,3.2078]
[1729277135509,0.37369,2675.9,2675.7,3.2078]
[1729277135819,0.3737,2675.8,2675.7,3.2078]
[1729277136112,0.93407,2676.3,2675.7,3.2078]
[1729277136306,1.64224,2676.4,2675.7,3.2078]
[1729277136503,0.7082,2676.4,2675.7,3.2078]
[1729277136710,0.7082,2676.4,2675.8,0.37369]
[1729277136917,0.7082,2676.4,2676.0,3.2078]
[1729277136918,0.37365,2676.2,2676.0,3.2078]
[1729277137122,0.37363,2676.3,2676.0,3.2078]
[1729277137307,0.37365,2676.1,2676.0,3.2078]
[1729277137511,0.7082,2676.4,2676.0,3.2078]
[1729277137713,0.37365,2676.1,2676.0,3.2078]
[1729277137911,0.7082,2676.4,2676.0,3.2078]
[1729277138113,0.37363,2676.3,2676.0,3.2078]
[1729277138316,0.37365,2676.2,2676.0,3.2078]
[1729277138512,0.37363,2676.3,2676.1,0.37365]
[1729277138708,0.7082,2676.4,2676.0,3.2078]
[1729277139019,0.37365,2676.1,2676.0,3.2078]
[1729277139414,1.08182,2676.4,2676.1,0.37365]
[1729277139713,0.7082,2676.4,2676.3,3.58143]
[1729277140018,3.25057309,2676.6,2676.3,0.37363]
[1729277140208,0.3736,2676.5,2676.2,0.37363]
[1729277140408,2.87698309,2676.6,2676.0,3.2078]
[1729277140409,0.37362,2676.4,2676.0,3.2078]
[1729277140711,0.37361,2676.5,2676.3,0.37363]
[1729277141022,0.37362,2676.4,2676.2,0.37363]
[1729277141211,0.37361,2676.5,2676.3,0.37363]
[1729277141406,2.87698309,2676.6,2676.0,3.2078]
[1729277141606,2.16788309,2676.6,2676.4,3.2078]
[1729277141910,2.16788309,2676.6,2676.5,0.3736]
[1729277142309,0.3736,2676.5,2676.4,3.2078]
[1729277142716,2.16788309,2676.6,2676.1,1.151]
[1729277143016,2.16788309,2676.6,2676.5,0.3736]
[1729277143215,2.16788309,2676.6,2676.4,0.3736]
[1729277143421,2.16788309,2676.6,2676.3,3.2078]
[1729277143717,2.16788309,2676.6,2675.9,3.59]
[1729277143718,0.37363,2676.3,2676.2,0.37364]
[1729277143914,0.37363,2676.3,2676.0,3.2078]
[1729277144217,2.16788309,2676.6,2676.0,3.2078]
[1729277144218,2.16788309,2676.6,2676.2,0.93411]